[Event "*** SCC Grand Prix: Titled Tuesday Blitz"]
[Site "Chess.com"]
[Date "2020.08.11"]
[Round "3"]
[White "Roaccutane"]
[Black "FedaMaster"]
[Result "1-0"]
[WhiteElo "2602"]
[BlackElo "2394"]
[TimeControl "180+1"]
[EndTime "10:30:01 PDT"]
[Termination "Roaccutane won by checkmate"]

1. d4 {[%clk 0:03:00.9]} 1... f5 {[%clk 0:02:58.4]} 2. e4 {[%clk 0:03:00.5]}
2... Nf6 {[%clk 0:02:58.9]} 3. e5 {[%clk 0:03:00.4]} 3... Nd5 {[%clk 0:02:58.7]}
4. c4 {[%clk 0:02:59.1]} 4... Nb6 {[%clk 0:02:57]} 5. c5 {[%clk 0:02:55]} 5...
Nd5 {[%clk 0:02:56.4]} 6. Bc4 {[%clk 0:02:53.4]} 6... c6 {[%clk 0:02:54.4]} 7.
Nc3 {[%clk 0:02:51.5]} 7... e6 {[%clk 0:02:43.4]} 8. Nge2 {[%clk 0:02:38.9]}
8... b6 {[%clk 0:02:35.3]} 9. Bxd5 {[%clk 0:02:38]} 9... cxd5 {[%clk 0:02:31]}
10. Nf4 {[%clk 0:02:05.6]} 10... g6 {[%clk 0:02:28.3]} 11. cxb6 {[%clk
0:01:56.6]} 11... Nc6 {[%clk 0:02:06.9]} 12. bxa7 {[%clk 0:01:48.6]} 12... Ba6
{[%clk 0:02:05.6]} 13. Be3 {[%clk 0:01:27]} 13... Qb6 {[%clk 0:02:00]} 14. Rb1
{[%clk 0:01:06.6]} 14... Be7 {[%clk 0:01:10.9]} 15. h4 {[%clk 0:01:06]} 15...
Rg8 {[%clk 0:01:08.9]} 16. f3 {[%clk 0:00:55.6]} 16... h6 {[%clk 0:01:06.2]} 17.
a3 {[%clk 0:00:49.7]} 17... g5 {[%clk 0:01:05.5]} 18. hxg5 {[%clk 0:00:50.6]}
18... hxg5 {[%clk 0:01:05.7]} 19. Nh5 {[%clk 0:00:50.5]} 19... f4 {[%clk
0:01:03.6]} 20. Bf2 {[%clk 0:00:50.2]} 20... Rh8 {[%clk 0:00:41.4]} 21. g4
{[%clk 0:00:43.4]} 21... fxg3 {[%clk 0:00:30.7]} 22. Nxg3 {[%clk 0:00:43.1]}
22... Rxh1+ {[%clk 0:00:25.1]} 23. Nxh1 {[%clk 0:00:44]} 23... Qxa7 {[%clk
0:00:22]} 24. Ng3 {[%clk 0:00:35.7]} 24... O-O-O {[%clk 0:00:20.2]} 25. b4
{[%clk 0:00:29.8]} 25... Bc4 {[%clk 0:00:20.7]} 26. Qa4 {[%clk 0:00:23.8]} 26...
Qb6 {[%clk 0:00:16.4]} 27. b5 {[%clk 0:00:22.5]} 27... Na5 {[%clk 0:00:13.5]}
28. Qc2 {[%clk 0:00:14.2]} 28... d6 {[%clk 0:00:11.8]} 29. Na4 {[%clk
0:00:13.9]} 29... Qa7 {[%clk 0:00:10.6]} 30. b6 {[%clk 0:00:13.8]} 30... Qa6
{[%clk 0:00:11.2]} 31. exd6 {[%clk 0:00:11.1]} 31... Bxd6 {[%clk 0:00:11.3]} 32.
Qc3 {[%clk 0:00:11.6]} 32... Kb8 {[%clk 0:00:11]} 33. Nc5 {[%clk 0:00:12]} 33...
Bxc5 {[%clk 0:00:10.6]} 34. dxc5 {[%clk 0:00:12.9]} 34... d4 {[%clk 0:00:11.4]}
35. Bxd4 {[%clk 0:00:12.9]} 35... Nb3 {[%clk 0:00:10.9]} 36. Rxb3 {[%clk
0:00:12.7]} 36... Bxb3 {[%clk 0:00:11.1]} 37. Be5+ {[%clk 0:00:13.6]} 37... Kb7
{[%clk 0:00:11.6]} 38. Qxb3 {[%clk 0:00:13.8]} 38... Rd5 {[%clk 0:00:11.1]} 39.
Bd6 {[%clk 0:00:11.2]} 39... Qa5+ {[%clk 0:00:07.2]} 40. Kf1 {[%clk 0:00:10.2]}
40... Qd2 {[%clk 0:00:06.9]} 41. Ne2 {[%clk 0:00:09.5]} 41... g4 {[%clk
0:00:03.8]} 42. fxg4 {[%clk 0:00:09.3]} 42... Qh6 {[%clk 0:00:04.6]} 43. Qf3
{[%clk 0:00:09.4]} 43... Qd2 {[%clk 0:00:03.7]} 44. Kg2 {[%clk 0:00:09.4]} 44...
Ka6 {[%clk 0:00:04.6]} 45. a4 {[%clk 0:00:08.3]} 45... Rd3 {[%clk 0:00:05.5]}
46. Qa8# {[%clk 0:00:08.3]} 1-0

[Event "*** SCC Grand Prix: Titled Tuesday Blitz"]
[Site "Chess.com"]
[Date "2020.08.11"]
[Round "3"]
[White "Ave_Mariia"]
[Black "korbul"]
[Result "1-0"]
[WhiteElo "2388"]
[BlackElo "2574"]
[TimeControl "180+1"]
[EndTime "10:30:01 PDT"]
[Termination "Ave_Mariia won by checkmate"]

1. d4 {[%clk 0:03:00.9]} 1... Nf6 {[%clk 0:02:59.5]} 2. c4 {[%clk 0:03:00.5]}
2... e6 {[%clk 0:02:59.8]} 3. g3 {[%clk 0:02:59.6]} 3... d5 {[%clk 0:02:58.7]}
4. Nf3 {[%clk 0:02:59]} 4... Be7 {[%clk 0:02:59.1]} 5. Bg2 {[%clk 0:02:58.9]}
5... O-O {[%clk 0:02:59.2]} 6. O-O {[%clk 0:02:59.1]} 6... c6 {[%clk 0:02:59.1]}
7. Qc2 {[%clk 0:02:57.8]} 7... Nbd7 {[%clk 0:02:59]} 8. Nbd2 {[%clk 0:02:58]}
8... b6 {[%clk 0:02:58.5]} 9. e4 {[%clk 0:02:58.3]} 9... Bb7 {[%clk 0:02:58.5]}
10. e5 {[%clk 0:02:56.7]} 10... Ne8 {[%clk 0:02:58.5]} 11. cxd5 {[%clk 0:02:56]}
11... exd5 {[%clk 0:02:58.8]} 12. Re1 {[%clk 0:02:50.2]} 12... Nc7 {[%clk
0:02:58.8]} 13. Nf1 {[%clk 0:02:42.7]} 13... Ne6 {[%clk 0:02:58.6]} 14. Ne3
{[%clk 0:02:31.9]} 14... Re8 {[%clk 0:02:58.3]} 15. Nf5 {[%clk 0:02:25.9]} 15...
Bf8 {[%clk 0:02:57.9]} 16. h4 {[%clk 0:02:23.3]} 16... c5 {[%clk 0:02:57]} 17.
Bg5 {[%clk 0:02:18.6]} 17... Qc7 {[%clk 0:02:46.2]} 18. Rac1 {[%clk 0:01:54]}
18... Rac8 {[%clk 0:02:45.2]} 19. Qa4 {[%clk 0:01:34.9]} 19... a6 {[%clk
0:02:41.7]} 20. b4 {[%clk 0:01:28.2]} 20... Bc6 {[%clk 0:02:08.8]} 21. Qxa6
{[%clk 0:01:23.8]} 21... Ra8 {[%clk 0:02:07.9]} 22. Qe2 {[%clk 0:01:22.6]} 22...
Ra3 {[%clk 0:01:58.7]} 23. b5 {[%clk 0:00:58.7]} 23... Bb7 {[%clk 0:01:57.5]}
24. Rc2 {[%clk 0:00:51.9]} 24... Qb8 {[%clk 0:01:54.9]} 25. Bc1 {[%clk
0:00:46.7]} 25... Ra4 {[%clk 0:01:51]} 26. Ng5 {[%clk 0:00:39.5]} 26... g6
{[%clk 0:01:26.1]} 27. Nxe6 {[%clk 0:00:31.6]} 27... Rxe6 {[%clk 0:01:14.7]} 28.
Qg4 {[%clk 0:00:24]} 28... Nxe5 {[%clk 0:00:55.2]} 29. Qg5 {[%clk 0:00:07.2]}
29... Nf3+ {[%clk 0:00:51.5]} 30. Bxf3 {[%clk 0:00:07.5]} 30... Rxe1+ {[%clk
0:00:51.4]} 31. Kg2 {[%clk 0:00:08]} 31... Re6 {[%clk 0:00:46.5]} 32. Bf4 {[%clk
0:00:07.6]} 32... Qe8 {[%clk 0:00:40.3]} 33. h5 {[%clk 0:00:07.4]} 33... f6
{[%clk 0:00:31.8]} 34. Qg4 {[%clk 0:00:07.3]} 34... g5 {[%clk 0:00:31.7]} 35. h6
{[%clk 0:00:04.7]} 35... Kh8 {[%clk 0:00:23.6]} 36. Rb2 {[%clk 0:00:03.1]} 36...
gxf4 {[%clk 0:00:20.1]} 37. Ng7 {[%clk 0:00:02.2]} 37... Re7 {[%clk 0:00:16.9]}
38. Nxe8 {[%clk 0:00:02.3]} 38... Rxe8 {[%clk 0:00:13.8]} 39. Qf5 {[%clk
0:00:03]} 39... Bc8 {[%clk 0:00:13.2]} 40. Qxf6+ {[%clk 0:00:03.2]} 40... Kg8
{[%clk 0:00:11.6]} 41. Bxd5+ {[%clk 0:00:03.8]} 41... Be6 {[%clk 0:00:09.7]} 42.
Bxe6+ {[%clk 0:00:04.4]} 42... Rxe6 {[%clk 0:00:10.5]} 43. Qxe6+ {[%clk
0:00:05.3]} 43... Kh8 {[%clk 0:00:11.4]} 44. Qf6+ {[%clk 0:00:05.8]} 44... Kg8
{[%clk 0:00:11.2]} 45. Re2 {[%clk 0:00:06.1]} 45... Rxd4 {[%clk 0:00:10.6]} 46.
Re8 {[%clk 0:00:05.6]} 46... f3+ {[%clk 0:00:11.5]} 47. Kxf3 {[%clk 0:00:05.3]}
47... Rd8 {[%clk 0:00:11.2]} 48. Qxf8# {[%clk 0:00:05.1]} 1-0

[Event "*** SCC Grand Prix: Titled Tuesday Blitz"]
[Site "Chess.com"]
[Date "2020.08.11"]
[Round "3"]
[White "coalescenet"]
[Black "RobPeresian"]
[Result "1-0"]
[WhiteElo "1948"]
[BlackElo "2245"]
[TimeControl "180+1"]
[EndTime "10:30:01 PDT"]
[Termination "coalescenet won on time"]

1. d4 {[%clk 0:03:00.1]} 1... Nf6 {[%clk 0:02:54.3]} 2. c4 {[%clk 0:02:59.5]}
2... e6 {[%clk 0:02:48.5]} 3. Nf3 {[%clk 0:02:58.3]} 3... d5 {[%clk 0:02:42.4]}
4. Nc3 {[%clk 0:02:57.5]} 4... Bb4 {[%clk 0:02:36.8]} 5. e3 {[%clk 0:02:56.3]}
5... O-O {[%clk 0:02:35.3]} 6. Qc2 {[%clk 0:02:54.6]} 6... c5 {[%clk 0:02:30.3]}
7. dxc5 {[%clk 0:02:54.7]} 7... Bxc5 {[%clk 0:02:26.4]} 8. Bd2 {[%clk
0:02:52.7]} 8... Nc6 {[%clk 0:02:24.6]} 9. cxd5 {[%clk 0:02:46.5]} 9... exd5
{[%clk 0:02:20.1]} 10. Na4 {[%clk 0:02:24.5]} 10... Bd6 {[%clk 0:02:13.6]} 11.
Be2 {[%clk 0:02:15.3]} 11... Bg4 {[%clk 0:02:01.4]} 12. Nc5 {[%clk 0:02:09.2]}
12... Qe7 {[%clk 0:02:00.6]} 13. Nb3 {[%clk 0:01:56.7]} 13... Ne4 {[%clk
0:01:50]} 14. h3 {[%clk 0:01:42.1]} 14... Be6 {[%clk 0:01:32.7]} 15. O-O {[%clk
0:01:41]} 15... Nxd2 {[%clk 0:01:30.3]} 16. Qxd2 {[%clk 0:01:35.8]} 16... Rad8
{[%clk 0:01:15.1]} 17. Rfd1 {[%clk 0:01:33.7]} 17... Bb8 {[%clk 0:01:14.3]} 18.
Bf1 {[%clk 0:01:26.9]} 18... f5 {[%clk 0:00:58.2]} 19. g3 {[%clk 0:01:24.9]}
19... f4 {[%clk 0:00:45.6]} 20. exf4 {[%clk 0:01:24.4]} 20... Qf6 {[%clk
0:00:27]} 21. Nbd4 {[%clk 0:01:16.1]} 21... Bc8 {[%clk 0:00:20.4]} 22. Rac1
{[%clk 0:01:11.4]} 22... Kh8 {[%clk 0:00:20.2]} 23. Qc3 {[%clk 0:01:04.7]} 23...
Nxd4 {[%clk 0:00:16.9]} 24. Qxd4 {[%clk 0:01:04.7]} 24... Qh6 {[%clk 0:00:14.9]}
25. Kh2 {[%clk 0:00:52.1]} 25... Rf6 {[%clk 0:00:13.2]} 26. Qxd5 {[%clk
0:00:38.8]} 26... Rdf8 {[%clk 0:00:09.8]} 27. Ng5 {[%clk 0:00:25.2]} 27... Rxf4
{[%clk 0:00:08]} 28. gxf4 {[%clk 0:00:20.2]} 28... Bxf4+ {[%clk 0:00:07.5]} 29.
Kh1 {[%clk 0:00:17.5]} 29... Bxg5 {[%clk 0:00:07.7]} 30. Rc3 {[%clk 0:00:13.4]}
30... Bf5 {[%clk 0:00:05.7]} 31. Qxf5 {[%clk 0:00:08]} 31... Bf6 {[%clk
0:00:05]} 32. Rf3 {[%clk 0:00:06.5]} 32... Qh4 {[%clk 0:00:04.6]} 33. Qg4 {[%clk
0:00:06]} 33... Qh6 {[%clk 0:00:04.1]} 34. Bg2 {[%clk 0:00:06.1]} 34... g6
{[%clk 0:00:04.4]} 35. Rfd3 {[%clk 0:00:04.7]} 35... Qg7 {[%clk 0:00:04.2]} 36.
Rd7 {[%clk 0:00:04.5]} 36... Qh6 {[%clk 0:00:04.4]} 37. Rxb7 {[%clk 0:00:03.9]}
37... Be5 {[%clk 0:00:04.6]} 38. Rbd7 {[%clk 0:00:03.5]} 38... Rxf2 {[%clk
0:00:02.5]} 39. Rd8+ {[%clk 0:00:03.6]} 39... Rf8 {[%clk 0:00:03.2]} 40. Rxf8+
{[%clk 0:00:03.1]} 40... Qxf8 {[%clk 0:00:04.1]} 41. Qe4 {[%clk 0:00:03.3]}
41... Bxb2 {[%clk 0:00:03.2]} 42. Qa8 {[%clk 0:00:04]} 42... Qxa8 {[%clk
0:00:01.9]} 43. Bxa8 {[%clk 0:00:04.9]} 43... Kg7 {[%clk 0:00:01.1]} 44. Bg2
{[%clk 0:00:05.8]} 44... Kf6 {[%clk 0:00:01.8]} 45. Rd7 {[%clk 0:00:06.6]} 45...
Be5 {[%clk 0:00:01.9]} 46. Rxa7 {[%clk 0:00:06.6]} 46... h5 {[%clk 0:00:01.2]}
47. Ra6+ {[%clk 0:00:07.5]} 1-0

[Event "*** SCC Grand Prix: Titled Tuesday Blitz"]
[Site "Chess.com"]
[Date "2020.08.11"]
[Round "3"]
[White "Adham_Fawzy"]
[Black "RusPakhom"]
[Result "1-0"]
[WhiteElo "2729"]
[BlackElo "2295"]
[TimeControl "180+1"]
[EndTime "10:30:02 PDT"]
[Termination "Adham_Fawzy won by resignation"]

1. e4 {[%clk 0:03:00.9]} 1... e5 {[%clk 0:03:00.2]} 2. Nf3 {[%clk 0:02:58.3]}
2... Nf6 {[%clk 0:03:00.4]} 3. Nxe5 {[%clk 0:02:58]} 3... d6 {[%clk 0:03:01]} 4.
Nf3 {[%clk 0:02:58.4]} 4... Nxe4 {[%clk 0:03:01.5]} 5. d4 {[%clk 0:02:58.4]}
5... d5 {[%clk 0:03:01.8]} 6. Bd3 {[%clk 0:02:58.7]} 6... Nc6 {[%clk 0:03:01.8]}
7. O-O {[%clk 0:02:59.6]} 7... Be7 {[%clk 0:03:02.2]} 8. Re1 {[%clk 0:02:59.3]}
8... Bf5 {[%clk 0:02:58.3]} 9. c4 {[%clk 0:02:58]} 9... Nb4 {[%clk 0:02:58.1]}
10. Bf1 {[%clk 0:02:39.5]} 10... O-O {[%clk 0:02:48.1]} 11. a3 {[%clk 0:02:39]}
11... Nc6 {[%clk 0:02:47.3]} 12. Nc3 {[%clk 0:02:39]} 12... Nxc3 {[%clk
0:02:44.4]} 13. bxc3 {[%clk 0:02:39.9]} 13... dxc4 {[%clk 0:02:41.2]} 14. Bxc4
{[%clk 0:02:40.8]} 14... Rb8 {[%clk 0:02:26]} 15. Bf4 {[%clk 0:02:36.8]} 15...
Bd6 {[%clk 0:02:23.7]} 16. Qd2 {[%clk 0:02:35.3]} 16... b5 {[%clk 0:02:17.4]}
17. Ba2 {[%clk 0:02:32.2]} 17... Qd7 {[%clk 0:02:14.9]} 18. d5 {[%clk
0:02:27.8]} 18... Na5 {[%clk 0:02:02.8]} 19. Ne5 {[%clk 0:02:27.5]} 19... Qc8
{[%clk 0:01:57.4]} 20. Nc6 {[%clk 0:02:18]} 20... Nxc6 {[%clk 0:01:55.3]} 21.
dxc6 {[%clk 0:02:18.9]} 21... Rd8 {[%clk 0:01:45.1]} 22. Qd4 {[%clk 0:02:03]}
22... a5 {[%clk 0:01:31.5]} 23. Rad1 {[%clk 0:01:45.5]} 23... Bg6 {[%clk
0:01:30.4]} 24. Bd5 {[%clk 0:01:31.7]} 24... Qf5 {[%clk 0:00:58]} 25. Bxd6
{[%clk 0:01:22.6]} 25... Rxd6 {[%clk 0:00:57.4]} 26. Qa7 {[%clk 0:01:23.1]}
26... Rf8 {[%clk 0:00:37.1]} 27. Bf3 {[%clk 0:01:06.8]} 27... Rxd1 {[%clk
0:00:30.8]} 28. Rxd1 {[%clk 0:01:07.7]} 28... Qe5 {[%clk 0:00:19.3]} 29. Qxa5
{[%clk 0:01:07.2]} 29... Bc2 {[%clk 0:00:17.2]} 30. Rc1 {[%clk 0:01:06.4]} 30...
Bd3 {[%clk 0:00:14.1]} 31. c4 {[%clk 0:01:05.2]} 31... Qf4 {[%clk 0:00:11.9]}
32. Rd1 {[%clk 0:00:49.5]} 32... bxc4 {[%clk 0:00:11.9]} 33. h3 {[%clk
0:00:49.9]} 33... h6 {[%clk 0:00:09.3]} 34. Qc3 {[%clk 0:00:42.1]} 34... Rd8
{[%clk 0:00:08]} 35. a4 {[%clk 0:00:41.4]} 35... Qd6 {[%clk 0:00:07.1]} 36. a5
{[%clk 0:00:40]} 36... Qc5 {[%clk 0:00:06.5]} 37. Ra1 {[%clk 0:00:34.3]} 37...
Qb5 {[%clk 0:00:06.1]} 38. a6 {[%clk 0:00:33.2]} 38... Ra8 {[%clk 0:00:04.6]}
39. Qa3 {[%clk 0:00:31.4]} 39... Qb6 {[%clk 0:00:04.6]} 40. g3 {[%clk
0:00:20.8]} 40... Qd4 {[%clk 0:00:04.2]} 41. Kg2 {[%clk 0:00:20.3]} 41... c3
{[%clk 0:00:04.5]} 42. Rc1 {[%clk 0:00:20.2]} 42... Be4 {[%clk 0:00:04.9]} 43.
Qxc3 {[%clk 0:00:19.7]} 43... Bxf3+ {[%clk 0:00:05]} 44. Qxf3 {[%clk 0:00:19.3]}
44... Qb6 {[%clk 0:00:04.9]} 45. Rd1 {[%clk 0:00:18.4]} 45... Qxa6 {[%clk
0:00:04]} 46. Rd7 {[%clk 0:00:18.9]} 46... Qc8 {[%clk 0:00:04.2]} 47. Qxf7+
{[%clk 0:00:18.3]} 1-0

[Event "*** SCC Grand Prix: Titled Tuesday Blitz"]
[Site "Chess.com"]
[Date "2020.08.11"]
[Round "3"]
[White "pedromartinez91"]
[Black "Savva09022009"]
[Result "1-0"]
[WhiteElo "2562"]
[BlackElo "2339"]
[TimeControl "180+1"]
[EndTime "10:30:03 PDT"]
[Termination "pedromartinez91 won by checkmate"]

1. d4 {[%clk 0:03:00.9]} 1... Nf6 {[%clk 0:02:57.7]} 2. c4 {[%clk 0:03:00.4]}
2... e6 {[%clk 0:02:51]} 3. Nf3 {[%clk 0:02:59.5]} 3... d5 {[%clk 0:02:50.5]} 4.
Nc3 {[%clk 0:02:52.8]} 4... dxc4 {[%clk 0:02:50.2]} 5. e3 {[%clk 0:02:48]} 5...
c5 {[%clk 0:02:46.9]} 6. Bxc4 {[%clk 0:02:43]} 6... Be7 {[%clk 0:02:43.3]} 7.
O-O {[%clk 0:02:41.1]} 7... O-O {[%clk 0:02:42.2]} 8. dxc5 {[%clk 0:02:41.7]}
8... Bxc5 {[%clk 0:02:40.5]} 9. Qxd8 {[%clk 0:02:25.8]} 9... Rxd8 {[%clk
0:02:37.8]} 10. Be2 {[%clk 0:02:26.7]} 10... Nc6 {[%clk 0:02:36.2]} 11. a3
{[%clk 0:02:12.7]} 11... a6 {[%clk 0:02:31.3]} 12. b4 {[%clk 0:02:10.7]} 12...
Be7 {[%clk 0:02:30.4]} 13. Bb2 {[%clk 0:02:11.3]} 13... e5 {[%clk 0:02:27]} 14.
Ng5 {[%clk 0:02:03.9]} 14... h6 {[%clk 0:02:16.5]} 15. Nge4 {[%clk 0:02:03.8]}
15... Nxe4 {[%clk 0:02:16.2]} 16. Nxe4 {[%clk 0:02:04.7]} 16... f5 {[%clk
0:02:09.9]} 17. Bc4+ {[%clk 0:01:55.2]} 17... Kh7 {[%clk 0:02:07.8]} 18. Nc3
{[%clk 0:01:56.1]} 18... b5 {[%clk 0:02:05.4]} 19. Bd5 {[%clk 0:01:53.1]} 19...
Bb7 {[%clk 0:02:03.2]} 20. Rac1 {[%clk 0:01:52.2]} 20... Rac8 {[%clk 0:02:00]}
21. Be6 {[%clk 0:01:52.2]} 21... Rb8 {[%clk 0:01:51.1]} 22. Bxf5+ {[%clk
0:01:52.4]} 22... g6 {[%clk 0:01:52]} 23. Be4 {[%clk 0:01:53]} 23... Rd2 {[%clk
0:01:47]} 24. Ba1 {[%clk 0:01:44.7]} 24... Nd8 {[%clk 0:01:38.6]} 25. Rfd1
{[%clk 0:01:40.3]} 25... Rxd1+ {[%clk 0:01:35.5]} 26. Rxd1 {[%clk 0:01:39.5]}
26... Bxe4 {[%clk 0:01:35.3]} 27. Nxe4 {[%clk 0:01:40.4]} 27... Nc6 {[%clk
0:01:28.3]} 28. Rd7 {[%clk 0:01:36.3]} 28... Kg8 {[%clk 0:01:21]} 29. g4 {[%clk
0:01:36.6]} 29... Rc8 {[%clk 0:01:18.4]} 30. Kg2 {[%clk 0:01:29.5]} 30... Kf8
{[%clk 0:01:15.8]} 31. Rb7 {[%clk 0:01:11.3]} 31... a5 {[%clk 0:00:58.4]} 32.
bxa5 {[%clk 0:01:03.9]} 32... Nxa5 {[%clk 0:00:56.9]} 33. Rxb5 {[%clk
0:01:03.5]} 33... Nc4 {[%clk 0:00:56.8]} 34. a4 {[%clk 0:00:50]} 34... Ra8
{[%clk 0:00:53.6]} 35. Bxe5 {[%clk 0:00:47]} 35... Rxa4 {[%clk 0:00:52.8]} 36.
Bd4 {[%clk 0:00:36.1]} 36... Kf7 {[%clk 0:00:49.5]} 37. Rb7 {[%clk 0:00:35.4]}
37... Ke6 {[%clk 0:00:48]} 38. Bc5 {[%clk 0:00:31.1]} 38... Bf6 {[%clk
0:00:41.1]} 39. Nxf6 {[%clk 0:00:25.7]} 39... Kxf6 {[%clk 0:00:42]} 40. h4
{[%clk 0:00:23]} 40... Ra2 {[%clk 0:00:37.1]} 41. Bd4+ {[%clk 0:00:23.1]} 41...
Ke6 {[%clk 0:00:30.5]} 42. Rg7 {[%clk 0:00:21.1]} 42... g5 {[%clk 0:00:26.5]}
43. hxg5 {[%clk 0:00:18.1]} 43... hxg5 {[%clk 0:00:27.4]} 44. Rxg5 {[%clk
0:00:18.1]} 44... Nd2 {[%clk 0:00:27.9]} 45. Re5+ {[%clk 0:00:18]} 45... Kf7
{[%clk 0:00:27.6]} 46. g5 {[%clk 0:00:17.7]} 46... Nc4 {[%clk 0:00:27.9]} 47.
Rc5 {[%clk 0:00:16.3]} 47... Nd6 {[%clk 0:00:28.2]} 48. Kf3 {[%clk 0:00:13.9]}
48... Nf5 {[%clk 0:00:26.4]} 49. Rxf5+ {[%clk 0:00:13.5]} 49... Kg6 {[%clk
0:00:23.8]} 50. Rc5 {[%clk 0:00:14.4]} 50... Ra8 {[%clk 0:00:21]} 51. Kg3 {[%clk
0:00:15.3]} 51... Re8 {[%clk 0:00:19.7]} 52. f4 {[%clk 0:00:15.5]} 52... Re4
{[%clk 0:00:20.1]} 53. Rc6+ {[%clk 0:00:15.8]} 53... Kf5 {[%clk 0:00:19.8]} 54.
Rf6# {[%clk 0:00:16.3]} 1-0

[Event "*** SCC Grand Prix: Titled Tuesday Blitz"]
[Site "Chess.com"]
[Date "2020.08.11"]
[Round "3"]
[White "tsvet2005"]
[Black "Harsha_Bharathakoti"]
[Result "0-1"]
[WhiteElo "2566"]
[BlackElo "2856"]
[TimeControl "180+1"]
[EndTime "10:30:05 PDT"]
[Termination "Harsha_Bharathakoti won by resignation"]

1. d4 {[%clk 0:03:00.1]} 1... f5 {[%clk 0:03:00.2]} 2. c4 {[%clk 0:02:59]} 2...
Nf6 {[%clk 0:03:00.2]} 3. Nf3 {[%clk 0:02:58.7]} 3... e6 {[%clk 0:03:00.4]} 4.
Nc3 {[%clk 0:02:56.1]} 4... d5 {[%clk 0:02:56.9]} 5. Bf4 {[%clk 0:02:55.4]} 5...
c6 {[%clk 0:02:56.2]} 6. e3 {[%clk 0:02:54.3]} 6... Be7 {[%clk 0:02:55]} 7. Bd3
{[%clk 0:02:54.1]} 7... O-O {[%clk 0:02:52]} 8. O-O {[%clk 0:02:54.5]} 8... Nh5
{[%clk 0:02:42.8]} 9. Ne5 {[%clk 0:02:37.8]} 9... Nxf4 {[%clk 0:02:41.7]} 10.
exf4 {[%clk 0:02:38.7]} 10... Nd7 {[%clk 0:02:41.3]} 11. Qe2 {[%clk 0:02:28.1]}
11... Nxe5 {[%clk 0:02:38.5]} 12. dxe5 {[%clk 0:02:10.9]} 12... d4 {[%clk
0:02:38.1]} 13. Nb1 {[%clk 0:02:08.7]} 13... c5 {[%clk 0:02:36.1]} 14. Nd2
{[%clk 0:02:06.8]} 14... b6 {[%clk 0:02:28]} 15. Qd1 {[%clk 0:01:50.4]} 15...
Kh8 {[%clk 0:02:21.8]} 16. Qc2 {[%clk 0:01:48.9]} 16... Bb7 {[%clk 0:02:19]} 17.
Be2 {[%clk 0:01:48.7]} 17... Rg8 {[%clk 0:02:13]} 18. Qd3 {[%clk 0:01:46.1]}
18... g5 {[%clk 0:02:11.8]} 19. Bf3 {[%clk 0:01:44.1]} 19... Qd7 {[%clk
0:01:45.5]} 20. Bxb7 {[%clk 0:01:22.7]} 20... Qxb7 {[%clk 0:01:46.4]} 21. fxg5
{[%clk 0:01:22.3]} 21... Rxg5 {[%clk 0:01:45.7]} 22. Qf3 {[%clk 0:01:16]} 22...
Qxf3 {[%clk 0:01:28.8]} 23. Nxf3 {[%clk 0:01:16.9]} 23... Rg4 {[%clk 0:01:28.8]}
24. Rad1 {[%clk 0:01:13.3]} 24... Rag8 {[%clk 0:01:27.7]} 25. g3 {[%clk
0:01:12.2]} 25... h5 {[%clk 0:01:17.2]} 26. Rd3 {[%clk 0:00:54.8]} 26... h4
{[%clk 0:01:15.5]} 27. Kg2 {[%clk 0:00:48.4]} 27... Re4 {[%clk 0:01:12.1]} 28.
Re1 {[%clk 0:00:44.1]} 28... Kh7 {[%clk 0:01:03.5]} 29. b3 {[%clk 0:00:41.7]}
29... Kh6 {[%clk 0:00:52.6]} 30. Rdd1 {[%clk 0:00:29.2]} 30... Reg4 {[%clk
0:00:48.8]} 31. Rg1 {[%clk 0:00:29]} 31... hxg3 {[%clk 0:00:32.2]} 32. hxg3
{[%clk 0:00:29.9]} 32... f4 {[%clk 0:00:32.9]} 33. Kh3 {[%clk 0:00:20.5]} 33...
fxg3 {[%clk 0:00:22.8]} 34. fxg3 {[%clk 0:00:21.4]} 34... R4g6 {[%clk
0:00:19.5]} 35. Rd3 {[%clk 0:00:17.7]} 35... Rf8 {[%clk 0:00:18.8]} 36. g4
{[%clk 0:00:16.2]} 36... Bg5 {[%clk 0:00:17.9]} 37. Kg3 {[%clk 0:00:10.5]} 37...
Bf4+ {[%clk 0:00:18]} 38. Kh3 {[%clk 0:00:08.9]} 38... Be3 {[%clk 0:00:18.9]}
39. Rf1 {[%clk 0:00:08.4]} 39... Rf4 {[%clk 0:00:18.3]} 40. Nh2 {[%clk
0:00:06.6]} 40... Kg5 {[%clk 0:00:13.8]} 41. Rdd1 {[%clk 0:00:03.9]} 41... Rh6+
{[%clk 0:00:13.4]} 42. Kg2 {[%clk 0:00:04.4]} 42... a5 {[%clk 0:00:11.4]} 43. a4
{[%clk 0:00:04.1]} 43... Rh8 {[%clk 0:00:11.1]} 44. Rf3 {[%clk 0:00:02.5]} 44...
Rxh2+ {[%clk 0:00:10.4]} 45. Kxh2 {[%clk 0:00:02.3]} 45... Rxf3 {[%clk
0:00:11.3]} 0-1

[Event "*** SCC Grand Prix: Titled Tuesday Blitz"]
[Site "Chess.com"]
[Date "2020.08.11"]
[Round "3"]
[White "BocharovD"]
[Black "dpopadic"]
[Result "1-0"]
[WhiteElo "2689"]
[BlackElo "2423"]
[TimeControl "180+1"]
[EndTime "10:30:05 PDT"]
[Termination "BocharovD won on time"]

1. d4 {[%clk 0:03:00.9]} 1... Nf6 {[%clk 0:02:58.8]} 2. c4 {[%clk 0:03:00.6]}
2... g6 {[%clk 0:02:58.8]} 3. Nf3 {[%clk 0:03:00.5]} 3... Bg7 {[%clk 0:02:59.1]}
4. g3 {[%clk 0:03:01.1]} 4... d6 {[%clk 0:02:59.6]} 5. Bg2 {[%clk 0:03:01.7]}
5... O-O {[%clk 0:03:00.2]} 6. O-O {[%clk 0:03:02.2]} 6... Nbd7 {[%clk
0:03:00.8]} 7. Nc3 {[%clk 0:03:02]} 7... e5 {[%clk 0:03:00.4]} 8. e4 {[%clk
0:03:02.4]} 8... exd4 {[%clk 0:02:59.6]} 9. Nxd4 {[%clk 0:03:01.9]} 9... Re8
{[%clk 0:03:00.1]} 10. h3 {[%clk 0:03:02]} 10... a6 {[%clk 0:03:00.2]} 11. b3
{[%clk 0:02:57.4]} 11... Rb8 {[%clk 0:02:59.6]} 12. Re1 {[%clk 0:02:44.1]} 12...
c5 {[%clk 0:02:58.7]} 13. Nc2 {[%clk 0:02:43.8]} 13... Qc7 {[%clk 0:02:57.2]}
14. a4 {[%clk 0:02:41.4]} 14... Ne5 {[%clk 0:02:53]} 15. Bg5 {[%clk 0:02:37.4]}
15... Be6 {[%clk 0:02:52.2]} 16. Qd2 {[%clk 0:02:32.9]} 16... Rbd8 {[%clk
0:02:43.8]} 17. Rad1 {[%clk 0:02:24.9]} 17... Qb6 {[%clk 0:02:39.2]} 18. Rb1
{[%clk 0:02:17.7]} 18... Nc6 {[%clk 0:02:11.2]} 19. Nd5 {[%clk 0:02:14.8]} 19...
Bxd5 {[%clk 0:02:08.1]} 20. cxd5 {[%clk 0:02:13.2]} 20... Ne5 {[%clk 0:01:49.9]}
21. Ne3 {[%clk 0:01:36.7]} 21... Qc7 {[%clk 0:01:36.1]} 22. f4 {[%clk
0:01:31.8]} 22... Ned7 {[%clk 0:01:34.6]} 23. e5 {[%clk 0:01:13.9]} 23... dxe5
{[%clk 0:01:29.3]} 24. d6 {[%clk 0:01:14.1]} 24... Qb8 {[%clk 0:01:22.6]} 25.
Nc4 {[%clk 0:00:59.4]} 25... exf4 {[%clk 0:01:18.8]} 26. Bxf4 {[%clk 0:00:43]}
26... Nh5 {[%clk 0:01:00.5]} 27. Bg5 {[%clk 0:00:41]} 27... Bd4+ {[%clk
0:00:49.3]} 28. Kh2 {[%clk 0:00:38.4]} 28... f6 {[%clk 0:00:49.2]} 29. Be3
{[%clk 0:00:35.8]} 29... b5 {[%clk 0:00:44]} 30. axb5 {[%clk 0:00:34.6]} 30...
axb5 {[%clk 0:00:43.5]} 31. Bxd4 {[%clk 0:00:34.5]} 31... cxd4 {[%clk
0:00:39.5]} 32. Qxd4 {[%clk 0:00:18.3]} 32... bxc4 {[%clk 0:00:32.3]} 33. bxc4
{[%clk 0:00:18]} 33... Qc8 {[%clk 0:00:26]} 34. Re7 {[%clk 0:00:15.6]} 34...
Rxe7 {[%clk 0:00:17.3]} 35. dxe7 {[%clk 0:00:15]} 35... Re8 {[%clk 0:00:17.8]}
36. Qd6 {[%clk 0:00:13.8]} 36... Ne5 {[%clk 0:00:13.5]} 37. c5 {[%clk
0:00:08.5]} 37... Ng7 {[%clk 0:00:07.9]} 38. Bd5+ {[%clk 0:00:05.3]} 38... Kh8
{[%clk 0:00:04.7]} 39. Qxf6 {[%clk 0:00:05.6]} 39... Nd7 {[%clk 0:00:01.1]} 40.
Qf7 {[%clk 0:00:02.5]} 1-0